Cogmind - Beta 11.1 @@@ ROGUE MODE // 2022.09.30 @ 21:18:49 Player: DuckBoy Result: Destroyed by H-55 Commando with Assault Rifle Performance ------------- Evolutions (3) 1500 Regions Visited (5) 1000 Robots Destroyed (89) 445 Value Destroyed (2538) 2538 Prototype IDs (7) 140 Alien Tech Used (0) 0 Bonus (215) 215 TOTAL SCORE: 5838 Bonus ------- High Alert Combat Kills 194 Follower Combat Kills 21 Cogmind --------- Core Integrity 0/700 Matter 285/300 Energy 99/100 System Corruption 6% Temperature Cool (0) Movement Core (50) Location -7/Factory Parts ------- > --- POWER (1) -------- (None) > --- PROPULSION (4) --- (None) > --- UTILITY (6) ------ Improved Signal Interpreter Hacking Suite System Shield System Shield > --- WEAPON (2) ------- Heavy Flail > --- INVENTORY (5) ---- Micro Nuclear Core Datajack Peak State ------------ > --- POWER ------------ Heavy Ion Engine > --- PROPULSION ------- Gravmag System Gravmag System Gravmag System Cooled Airjet > --- UTILITY ---------- Large Storage Unit Improved Sensor Array Improved Signal Interpreter Hacking Suite System Shield System Shield > --- WEAPON ----------- Shock Rifle Improved Spread Laser > --- INVENTORY -------- Gravmag System Hardened Medium Armor Plating System Shield Heavy Laser Gatling Laser Heavy Ion Cannon Shock Bomb Launcher Heavy Rocket Launcher Improved Datajack Heavy Flail [Rating: 47] Favorites ----------- Power Improved Deuterium Engine Engine Improved Deuterium Engine Power Core Micro Nuclear Core Propulsion Armored Wheel Treads Light Treads Wheel Armored Wheel Hover Unit Gravmag System Flight Unit Xenon Bombardment Thruster Utility System Shield Device Improved Sensor Array Storage Large Storage Unit Processor Improved Signal Interpreter Hackware System Shield Protection Hardened Medium Armor Plating Weapon Light Assault Rifle Energy Gun Improved Spread Laser Energy Cannon Heavy Ion Cannon Ballistic Gun Light Assault Rifle Launcher Shock Bomb Launcher Impact Weapon Heavy Flail Build | -11 -10 -9 -9 -8 -7 ------- Run | Scr Mat Mat Min Mat Fac Slots Evolved 6 | . . 2 . 2 2 Power . | . . . . . . Propulsion 2 | . . 2 . . . Utility 4 | . . . . 2 2 Weapon . | . . . . . . Parts Attached 87 | 6 1 13 . 9 58 Power 12 | 1 . 1 . 1 9 Engine 6 | 1 . 1 . 1 3 Core 6 | . . . . . 6 Reactor . | . . . . . . Propulsion 29 | 2 . 6 . 2 19 Treads 4 | . . 2 . 2 . Leg . | . . . . . . Wheel 14 | 2 . 4 . . 8 Hover 10 | . . . . . 10 Flight 1 | . . . . . 1 Utility 17 | 1 1 2 . 3 10 Device 3 | . 1 . . . 2 Storage 4 | 1 . 2 . . 1 Processor 1 | . . . . . 1 Hackware 7 | . . . . 3 4 Protection 2 | . . . . . 2 Artifact . | . . . . . . Weapon 29 | 2 . 4 . 3 20 Energy Gun 9 | 1 . . . . 8 Energy Cannon 1 | . . . . . 1 Ballistic Gun 8 | 1 . 3 . 1 3 Ballistic Cannon . | . . . . . . Launcher 8 | . . 1 . 2 5 Special Weapon . | . . . . . . Impact Weapon 3 | . . . . . 3 Slashing Weapon . | . . . . . . Piercing Weapon . | . . . . . . Special Melee Weapon . | . . . . . . Unidentified Prototypes 3 | . . . . . 3 Parts Lost 35 | . . 4 . 6 25 Power 3 | . . . . 1 2 Propulsion 16 | . . 2 . 2 12 Utility 8 | . . 1 . 1 6 Weapon 8 | . . 1 . 2 5 Highest Loss Streak 4 | . . 3 . 4 3 To Critical Strikes . | . . . . . . Average Slot Usage (%) 85 | . 91 82 88 89 86 Engine 6 | . 14 11 11 9 4 Treads 3 | . . 7 11 9 . Wheel 18 | . 28 23 33 27 15 Hover 3 | . . . . . 5 Device 3 | . 5 6 . . 2 Storage 7 | . 14 11 11 9 6 Processor 2 | . . . . . 4 Hackware 17 | . . . . 18 25 Protection 2 | . . . . . 3 Energy Gun 5 | . 14 . . . 7 Ballistic Gun 7 | . 14 21 22 14 . Impact Weapon 1 | . . . . . 1 Naked Turns . | . . . . . . Heaviest Build 56 | 14 15 29 29 35 56 Greatest Support 48 | 20 20 40 36 36 48 Greatest Overweight (x) 11 | . . 2 . 1 11 Average Overweight (x) . | . . . . . . Largest Inventory Capacity 15 | 8 8 15 15 15 15 Average Capacity 12 | 7 8 10 15 15 13 Most Carried 15 | 1 3 15 14 14 15 Average Carried 10 | . 2 8 14 13 10 Final Capacity 15 | 8 8 15 15 15 5 Final Carried 14 | 1 3 14 14 13 2 Class Distribution -------------------- 69% | Hacker-Mutant 23% | Mutant 7% | Scavenger-Mutant Dominant Class ---------------- Mutant | -10/Materials Mutant | -9/Materials Mutant | -9/Mines Hacker-Mutant | -8/Materials Hacker-Mutant | -7/Factory Resources | -11 -10 -9 -9 -8 -7 ----------- Run | Scr Mat Mat Min Mat Fac Matter Collected 1782 | 260 13 469 18 187 835 Remotely . | . . . . . . Salvage Created 3088 | . 34 770 . 495 1789 Parts 193 | . 1 66 . 35 91 Haulers Intercepted 4 | . . 2 . . 2 Recyclers Shooed 2 | . . 2 . . . Parts Field Recycled . | . . . . . . Retrieved Matter . | . . . . . . Parts Self-Destructed . | . . . . . . Prevented . | . . . . . . Kills | -11 -10 -9 -9 -8 -7 ------- Run | Scr Mat Mat Min Mat Fac Combat Hostiles Destroyed 59 | . 1 17 . 11 30 Guns 31 | . 1 13 . 4 13 Cannons 1 | . . . . . 1 AOE 23 | . . 4 . 7 12 Classes Destroyed 13 | . 1 7 . 1 4 Worker 3 | . . 1 . 1 1 Builder 8 | . . 1 . 3 4 Hauler 4 | . . 2 . . 2 Recycler 5 | . . . . 1 4 Operator 5 | . . 3 . . 2 Watcher 5 | . . 2 . . 3 Swarmer 21 | . . 7 . 7 7 Grunt 23 | . 1 6 . 3 13 Brawler 1 | . . . . . 1 Protector 1 | . . . . . 1 Sentry 10 | . . 4 . 1 5 Hunter 2 | . . . . . 2 Programmer 1 | . . . . . 1 Best Kill Streak 15 | . 1 4 . 15 5 Combat Bots Only 10 | . 1 4 . 10 5 Max Kills in Single Turn 4 | . 1 3 . 3 4 Gunslinging . | . . . . . . Exploded 4 | . . 3 . 2 4 Melee . | . . . . . . Uniques/NPCs Destroyed . | . . . . . . Combat | -11 -10 -9 -9 -8 -7 -------- Run | Scr Mat Mat Min Mat Fac Damage Taken 4627 | . 11 565 . 991 3060 Core 1030 | . 11 154 . 164 701 Absorbed by Shields . | . . . . . . Core Remaining (%) 81 | 100 95 . 61 70 . Volleys Fired 225 | . 1 75 . 28 121 Largest 2 | . 2 2 . 2 2 Hottest 149 | . 60 40 . 40 149 Shots Fired 359 | . 2 144 . 38 175 Gun 303 | . 2 139 . 26 136 Cannon 16 | . . . . . 16 Launcher 40 | . . 5 . 12 23 Special . | . . . . . . Kinetic 199 | . 1 139 . 26 33 Thermal 90 | . . . . . 90 Explosive 15 | . . 5 . . 10 Electromagnetic 55 | . 1 . . 12 42 Robot Hit Streak 27 | . 1 10 . 4 27 Robot Miss Streak 5 | . 1 4 . 3 5 Penetration Max . | . . . . . . Secondary Targets 2 | . . 2 . . . Max Gunslinging Chain 1 | . . 1 . . . Shots Hit Robots 228 | . 1 79 . 21 127 Core Hits 191 | . 1 43 . 27 120 Critical Kills . | . . . . . . Critical Parts Destroyed . | . . . . . . Critical Strikes 2 | . . . . . 2 Burn 2 | . . . . . 2 Melee Attacks 15 | . . . . . 15 Impact 15 | . . . . . 15 Slashing . | . . . . . . Piercing . | . . . . . . Sneak Attacks 2 | . . . . . 2 Combat Hostiles . | . . . . . . Follow-up Attacks . | . . . . . . Damage Inflicted 6170 | . 15 1233 . 673 4249 Guns 3131 | . 15 946 . 138 2032 Cannons 186 | . . . . . 186 Explosions 2343 | . . 287 . 535 1521 Melee 510 | . . . . . 510 Ramming . | . . . . . . Kinetic 1369 | . 15 946 . 138 270 Thermal 1685 | . . . . 81 1604 Explosive 1043 | . . 234 . . 809 Electromagnetic 1563 | . . 53 . 454 1056 Impact 510 | . . . . . 510 Slashing . | . . . . . . Piercing . | . . . . . . Highest Corruption 6 | . . 2 2 . 6 Average Corruption 2 | . . 2 2 . 3 Corruption Purged . | . . . . . . Corruption Blocked . | . . . . . . Effects 38 | . . 8 1 . 29 Message Errors 7 | . . 1 . . 6 Matter Fused 6 | . . 1 1 . 4 Heat Flow Errors 5 | . . . . . 5 Energy Discharges 6 | . . 1 . . 5 Data Loss (minor) 6 | . . 4 . . 2 Misfires 5 | . . . . . 5 Alerts 2 | . . 1 . . 1 Weapon Failures 1 | . . . . . 1 Overload Shots . | . . . . . . Overflow Damage 204 | . . 25 . 15 164 Projectiles 10 | . . . . . 10 Explosions 75 | . . 25 . 15 35 Melee 119 | . . . . . 119 Knockbacks 3 | . . . . . 3 Impact 3 | . . . . . 3 Kinetic . | . . . . . . Secondary . | . . . . . . Self-Inflicted Damage 194 | . . 54 . 26 114 Shots 8 | . . 2 . 2 4 Rammed . | . . . . . . Targets Rammed . | . . . . . . Kicked . | . . . . . . Crushed . | . . . . . . Highest Temperature 353 | . 6 15 . 20 353 Average Temperature 80 | . 6 6 . 6 85 Received Heat Transfer 1623 | . 6 201 . 477 939 Effects 1 | . . . . . 1 Energy Bleed 1 | . . . . . 1 Siege Activations . | . . . . . . Robots Corrupted 3 | . . . . . 3 Combat Hostiles 3 | . . . . . 3 Parts Fried 3 | . . . . 1 2 Impact Corruptions 4 | . . . . . 4 Robots Melted . | . . . . . . Combat Hostiles . | . . . . . . Parts Melted 7 | . . . . 2 5 Heat Transferred 2258 | . . . . 100 2158 Parts Sabotaged . | . . . . . . Parts Stolen . | . . . . . . Parts Stripped . | . . . . . . Power Chain Reactions 6 | . . . . 2 4 Missiles Intercepted . | . . . . . . Alert | -11 -10 -9 -9 -8 -7 ------- Run | Scr Mat Mat Min Mat Fac Peak Influence 753 | . 74 566 37 423 753 Initial 173 | . . 31 37 14 173 Average 255 | . 17 343 37 227 255 Maximum Alert Level 3 | . . 2 . 2 3 Low Security (%) 43 | 100 100 20 100 47 43 Level 1 35 | . . 37 . 19 39 Level 2 19 | . . 42 . 32 13 Level 3 1 | . . . . . 3 Level 4 . | . . . . . . Level 5 . | . . . . . . High Security . | . . . . . . Max Security . | . . . . . . Squads Dispatched 16 | . 1 3 1 3 8 Investigation 5 | . 1 . . 1 3 Extermination 1 | . . . . . 1 Reinforcement 5 | . . 3 . 1 1 Assault 2 | . . . 1 . 1 Garrison 3 | . . . . 1 2 Intercept . | . . . . . . Searches Triggered . | . . . . . . Construction Impeded 1 | . . . . 1 . Haulers Reinforced 1 | . . . . . 1 Active Scanning Responses . | . . . . . . Cargo Convoy Interrupts . | . . . . . . Stealth | -11 -10 -9 -9 -8 -7 --------- Run | Scr Mat Mat Min Mat Fac Distress Signals 4 | . . 1 . 2 1 Communications Jammed . | . . . . . . Distress Signals . | . . . . . . Times Spotted 112 | . 2 34 . 25 51 Peak Tracking Total 7 | . 2 5 . 7 6 Tactical Retreats 8 | . . 1 . 3 4 Traps | -11 -10 -9 -9 -8 -7 ------- Run | Scr Mat Mat Min Mat Fac Traps Triggered 5 | . 1 1 . . 3 Indirectly . | . . . . . . Trap Hack Attempts . | . . . . . . Triggered . | . . . . . . Disarmed . | . . . . . . Reprogrammed . | . . . . . . Reused . | . . . . . . Traps Extracted . | . . . . . . Installed . | . . . . . . Triggered 1 | . . . . . 1 Machines | -11 -10 -9 -9 -8 -7 ---------- Run | Scr Mat Mat Min Mat Fac Machines Disabled 18 | . . 2 . 1 15 Max in Single Turn 10 | . . 1 . 1 10 Garrison Access 3 | . . . . . 3 Machines Sabotaged . | . . . . . . Garrisons Compromised . | . . . . . . Overloaded Fab Kills . | . . . . . . Hacking | -11 -10 -9 -9 -8 -7 --------- Run | Scr Mat Mat Min Mat Fac Machines Accessed 33 | . 1 9 . 2 21 Terminals 19 | . 1 8 . 2 8 Fabricators 3 | . . . . . 3 Repair Stations . | . . . . . . Recycling Units 5 | . . . . . 5 Scanalyzers 3 | . . 1 . . 2 Garrison Access 3 | . . . . . 3 Total Hacks 97 | . 3 26 . 4 64 Successful 57 | . 2 16 . 3 36 Failed 40 | . 1 10 . 1 28 Catastrophic 11 | . . 2 . 1 8 Database Lockouts . | . . . . . . Manual 56 | . 3 13 . 4 36 Terminals 59 | . 3 18 . 4 34 Fabricators 5 | . . . . . 5 Repair Stations . | . . . . . . Recycling Units 15 | . . . . . 15 Scanalyzers 15 | . . 8 . . 7 Garrison Access 3 | . . . . . 3 Terminal Hacks 21 | . 2 5 . 2 12 Part Schematic 9 | . 2 . . . 7 Robot Schematic 1 | . . . . 1 . Terminal Index 3 | . . 1 . 1 1 Fabricator Index 1 | . . . . . 1 Scanalyzer Index 1 | . . 1 . . . Alert Level 1 | . . . . . 1 Unreport Threat 4 | . . 2 . . 2 Locate Traps 1 | . . 1 . . . Fabricator Hacks 5 | . . . . . 5 Network Status 1 | . . . . . 1 Load Schematic 2 | . . . . . 2 Build 2 | . . . . . 2 Repair Station Hacks . | . . . . . . Recycling Unit Hacks 3 | . . . . . 3 Report Inventory 2 | . . . . . 2 Retrieve Components 1 | . . . . . 1 Scanalyzer 13 | . . 8 . . 5 Insert Component 7 | . . 4 . . 3 Analyze 6 | . . 4 . . 2 Garrison Access Hacks 3 | . . . . . 3 Seal Access 3 | . . . . . 3 Unauthorized Hacks 12 | . . 3 . 1 8 Terminals 6 | . . 3 . 1 2 Botnet 5 | . . 2 . 1 2 Operators 1 | . . 1 . . . Fabricators . | . . . . . . Repair Stations . | . . . . . . Recycling Units 6 | . . . . . 6 Reject 1 | . . . . . 1 Recyclers 1 | . . . . . 1 Mask 4 | . . . . . 4 Scanalyzers . | . . . . . . Garrison Access . | . . . . . . Data Cores Recovered 2 | . . . . . 2 Used 1 | . . . . . 1 Hacking Detections 23 | . 1 5 . 2 15 Full Trace Events 3 | . . . . . 3 Feedback Events . | . . . . . . Feedback Blocked . | . . . . . . Robot Schematics Acquired 1 | . . . . 1 . Robots Built . | . . . . . . Authchips . | . . . . . . Time . | . . . . . . Total Robot Build Rating . | . . . . . . Part Schematics Acquired 15 | . 2 4 . . 9 Parts Built 3 | . . . . . 3 Authchips . | . . . . . . Time 179 | . . . . . 179 Total Part Build Rating 13 | . . . . . 13 Parts Repaired . | . . . . . . Time . | . . . . . . Parts Recycled . | . . . . . . Recycled Matter . | . . . . . . Retrieved Matter . | . . . . . . Retrieved Components 9 | . . . . . 9 Parts Scanalyzed 6 | . . 4 . . 2 Part Schematics Acquired 6 | . . 4 . . 2 Parts Damaged . | . . . . . . Bothacking | -11 -10 -9 -9 -8 -7 ------------ Run | Scr Mat Mat Min Mat Fac Used RIF Installer . | . . . . . . Robots Hacked . | . . . . . . Non-combat . | . . . . . . Combat . | . . . . . . Robot Hacks Applied . | . . . . . . Relay Couplers Released . | . . . . . . Fabnet Peak Effective % . | . . . . . . Robots Rewired 1 | . . . . . 1 Allies Hacked . | . . . . . . Hacks Repelled . | . . . . . . Allies | -11 -10 -9 -9 -8 -7 -------- Run | Scr Mat Mat Min Mat Fac Total Allies 4 | . . . 3 . 1 Largest Group 3 | . . . 3 3 1 Highest-Rated Group 73 | . . . 73 73 32 Highest-Rated Ally 32 | . . . 31 31 32 Total Orders . | . . . . . . Ally Attacks 21 | . . . . 18 3 Total Damage 397 | . . . . 315 82 Kills 3 | . . . . 3 . Allies Corrupted . | . . . . . . Allies Melted . | . . . . . . Intel | -11 -10 -9 -9 -8 -7 ------- Run | Scr Mat Mat Min Mat Fac Robot Analysis Total . | . . . . . . Derelict Logs Recovered 1 | . . . 1 . . Drone Launches . | . . . . . . Drone Recoveries . | . . . . . . Exploration | -11 -10 -9 -9 -8 -7 ------------- Run | Scr Mat Mat Min Mat Fac Turns Passed 4388 | 34 97 949 206 270 2832 Spaces Moved 3470 | 31 113 684 214 181 2247 Core 205 | 1 . . . . 204 Treads 73 | . . 54 . 19 . Legs . | . . . . . . Wheels 2527 | 30 113 630 214 162 1378 Hover 665 | . . . . . 665 Flight . | . . . . . . Fastest Speed 48 | 50 80 80 90 90 48 Average Speed 96 | 79 80 95 90 105 97 Slowest Speed 600 | 80 80 160 90 240 600 Overloaded Moves . | . . . . . . Propulsion Burnouts . | . . . . . . Robots Hopped . | . . . . . . Cave-ins Triggered . | . . . . . . Exploration Rate (%) 37 | 3 36 51 55 29 49 Regions Visited 5 Branch Regions 1 Pre-discovered Areas . | . . . . . . Known Exits Taken 1 | . . . . 1 . Unknown Exits Taken 4 | 1 1 1 1 . . Scrap Searched 1 | . . . 1 . . Spaces Dug 18 | . . 17 . . 1 Terrain Destroyed 125 | . . 37 . 2 86 Melee 1 | . . . . . 1 Projectile 4 | . . . . . 4 AOE 120 | . . 37 . 2 81 Terrain Rammed . | . . . . . . Walls Destroyed . | . . . . . . Machines Disabled . | . . . . . . Actions | -11 -10 -9 -9 -8 -7 --------- Run | Scr Mat Mat Min Mat Fac Total 4160 | 37 116 841 227 224 2715 Wait 245 | . . 57 14 1 173 Move 3465 | 30 112 683 213 180 2247 Hop . | . . . . . . Pick Up 53 | 1 2 10 . 5 35 Fast Attach 32 | 6 1 5 . . 20 Attach 30 | . . 1 . 5 24 Detach 8 | . . . . . 8 Swap 25 | . . 7 . 4 14 Drop 49 | . . 3 . 1 45 Fire 225 | . 1 75 . 28 121 Melee 15 | . . . . . 15 Ram . | . . . . . . Kick . | . . . . . . Crush . | . . . . . . Escape Stasis 8 | . . . . . 8 Rewire 5 | . . . . . 5 Trap . | . . . . . . Miscellaneous . | . . . . . . Route ------- -11/Scrapyard -10/Materials -9/Materials (discovered 3 exits: *Mat x2 / [*Min]) -9/Mines -8/Materials -7/Factory (discovered 5 exits: *Fac x2 / *Sto x2 / *Low) History --------- Turn | Location | Event 19 | -11/Scrapyard | Discovered new exit (range 16) 35 | -11/Scrapyard | Entered Materials 112 | -10/Materials | Discovered new exit (range 10) 132 | -10/Materials | Entered another Materials area 132 | -9/Materials | Evolved 2 slots: Propulsion x2 322 | -9/Materials | Build established: Mutant 475 | -9/Materials | Discovered new exit (range 9) 589 | -9/Materials | Discovered new exit (range 10) 648 | -9/Materials | Lost 3 parts (2n1w) 975 | -9/Materials | Discovered new exit (range 10) 1047 | -9/Materials | Build established: Scavenger-Mutant 1081 | -9/Materials | Entered Mines 1250 | -9/Mines | Learned location of 1 exit from Materials 1269 | -9/Mines | Discovered new exit (range 5) 1272 | -9/Mines | Met a Derelict testing a Signal Generator 1287 | -9/Mines | Entered Materials 1287 | -8/Materials | Accompanied by 3 allies 1287 | -8/Materials | Evolved 2 slots: Utility x2 1288 | -8/Materials | Identified exit to Factory 1292 | -8/Materials | Led the pair of lost Derelicts to an unsafe place 1453 | -8/Materials | Garrison activated, responded to threat 1498 | -8/Materials | Destroyed 10 combat bots 1557 | -8/Materials | Entered Factory 1557 | -7/Factory | Evolved 2 slots: Utility x2 1585 | -7/Factory | Lost 4 parts (2n2w) 1650 | -7/Factory | Build established: Hacker-Mutant 1938 | -7/Factory | Garrison activated, responded to threat 2264 | -7/Factory | Discovered new exit (range 13) 2281 | -7/Factory | Discovered new exit (range 15) 2585 | -7/Factory | Discovered new exit (range 16) 2595 | -7/Factory | Lost 3 parts (1n2u) 2644 | -7/Factory | Discovered new exit (range 9) 2644 | -7/Factory | Identified exit to Storage 2651 | -7/Factory | Identified exit to Factory 3443 | -7/Factory | Discovered new exit (range 15) 3677 | -7/Factory | Identified exit to Lower Caves 3733 | -7/Factory | Fabricated Adv. Sensor Array? 3828 | -7/Factory | Lost 3 parts (1n2w) 3930 | -7/Factory | Fabricated Gravmag System? 3957 | -7/Factory | First assault squad dispatched 3962 | -7/Factory | Core integrity fell below 50% 4258 | -7/Factory | Garrison activated, responded to threat 4281 | -7/Factory | Lost 3 parts (1p1n1w) 4368 | -7/Factory | Core integrity fell below 20% 4389 | -7/Factory | Destroyed by H-55 Commando with Assault Rifle Last Messages --------------- 04254_ Sneak attack on A-02 Transporter. 04255_ A-02 Transporter calls for reinforcements. 04255_ ALERT: Hostile activity reported, dispatching reinforcements to area. 04258_ A-02 Transporter calls for garrison support. 04258_ ALERT: Activating Garrison Access F001. 04279_ Acquired Xenon Bombardment Thruster. 04299_ Acquired Mic. Nuclear Core. 04312_ System corrupted: Matter fused (-10). 04367_ Penetrated by Slug. 04370_ Slug penetrates Wall. 04373_ Penetrated by Slug. 04373_ Xenon Bombardment Thruster destroyed. 04375_ System corrupted: Heat flow error (+220). 04379_ Gravmag System destroyed. 04380_ Penetrated by Slug. 04383_ G-47 Trooper suffers critical hit (Burn). 04384_ System Shield destroyed. 04385_ Dropped Med. Storage Unit. 04389_ Penetrated by Slug. Map ----- +----------------------------------------------------+ | ?????????????????????????????????????????????????? | | ?????????????????????????????????????????????????? | | ?????????????????????????????????????????????????? | | ?????????????????????????????????????????????????? | | ?????????????????????????????????????????????????? | | ?????????????????????????????????????????????????? | | ?????????????????????????????????????????????????? | | ?????????????????????????????????????????????????? | | ?????????????????????????????????????????????????? | | ?????????????????????????????????????????????????? | | ?????????????????????????????????????????????????? | | ?????????????????????????????????????????????????? | | ?????????????????????????????? ????????????????? | | ?????????????????????????????? ???????? ??????? | | ????????????????????????????? ""??????? ??????? | | ????????????????????????????? ?????? ??????? | | ??????????????###########+### """?????" "?????? | | ??????????????# ???? ????? | | ??????????????# """????"" ""???"" | | ??????????????+ ??? ? | | ??????????????# !!! """"""""" """"""" | | ??????????????# != | | ??????????????##### ## !! """"""""" """"""" | | ??????????????????# ## | | ??????????????????# ## /= """"""""" """"""" | | ??????????????????# ## !@ | | ??????????????????# ## ! """"""""" """"""" | | ??????????????????# ## | | ??????????????????# ## | | ??????????????????# ## ########### #####+##### | | ??????????????????# ## #?????????# ## | | ????????###########/## #?????????# ## " | | ????????# # #?????????# ## T | | ????????# """""" #h! #?????????# ## " """ | | ????????# """""" #^ ###########+## """ | | ????????# """""" # # """" # """ | | ????????# """""" # # ""S"" """ # | | ????????# #g # "" "" """ # """ """ | | ????????# """""" # g # """ # """ """ | | ????????# """""" [#g gg# # """ """ | | ????????# """""" # # """ """ # ? | | ????????# """""" + + """ """ # ???! ? | | ????????# * # # """ """ ###??##### | | ????????# ! # # #????# | | ????????############## # ! #????#! " | | ???????????????????? # #????# " | | ?????????????????? # #????# | | ???????????????? ##############??####### | | ??????????????? #???????????????# + | | ??????????????? #???????????????# # | +----------------------------------------------------+ Best States ------------- Heat Dissipation 34 Energy Generation 16 Energy Capacity 290 Matter Stores 300 Matter Capacity 300 Sight Range 16 Robot Scan Range 16 Terrain Scan Density 10 Armor Coverage 450 Evasion (%) 55 Recoil Reduction 2 Offensive Hacking 20 Defensive Hacking 30 Item Schematics ----------------- Cargo Storage Unit | -10/Materials | Hacked Lrg. Storage Unit | -10/Materials | Hacked Hacking Suite | -9/Materials | Scanalyzed Hvy. Ion Engine | -9/Materials | Scanalyzed System Shield | -9/Materials | Scanalyzed Arm. Wheel | -9/Materials | Scanalyzed Lgt. Neutrino Core | -7/Factory | Hacked Imp. Medium Treads | -7/Factory | Hacked System Restoration Module | -7/Factory | Hacked Arc Projector | -7/Factory | Hacked Gravmag System | -7/Factory | Hacked Adv. Sensor Array | -7/Factory | Hacked Hvy. Rocket Launcher | -7/Factory | Scanalyzed Prc. Beam Rifle | -7/Factory | Hacked Datajack | -7/Factory | Scanalyzed Robot Schematics ------------------ M-13 Machinist | -8/Materials | Hacked Fabricated ------------ Adv. Sensor Array | x1 | -7/Factory Gravmag System | x2 | -7/Factory Alien Tech Used ----------------- None Achievements -------------- None Challenges ------------ None Game ------ Seed BiocellCloakAutohacker Manual? 0 Play Time 00:53:10 Cumulative 185.6 hours Start 2022.09.30 @ 20:21:58 End 2022.09.30 @ 21:18:49 Sessions 1 Manual Loads 0 Difficulty Rogue Special Mode None Game No. 142 Rogue 139 Adventurer 3 Explorer 0 Win Type - Total 1 Types 1/0/0/0/0/0/0/0/0 Lore% 58 Gallery% 61 Achievement% 51 Wizard Run 0 Options --------- ASCII 0 Keyboard 0 Movement Numpad Keybinds 0 Fullscreen 1 Font 18/SmallcapsGlow Map View 76x50 Tactical HUD 1 Map Filters NONE Filters NONE Steam 1 RUN: 093393db-90ce-4751-9587-5d382789bb6f